bitfinex/quotes_SOLUSD_20230111
["timestamp","ask_amount","ask_price","bid_price","bid_amount"]
[1673479733733,46.73,16.39,16.371,45.83]
[1673479733944,128.6296,16.389,16.371,45.83]
[1673479734258,127.6696,16.389,16.371,45.83]
[1673479735095,127.6696,16.389,16.372,20.0]
[1673479735302,20.0,16.388,16.373,45.82]
[1673479735509,127.6696,16.389,16.374,20.0]
[1673479735510,17.0,16.387,16.374,20.0]
[1673479735725,1.92,16.386,16.375,45.82]
[1673479735930,1.92,16.386,16.376,20.0]
[1673479736146,1.92,16.386,16.374,20.0]
[1673479736358,1.92,16.386,16.371,45.83]
[1673479736892,18.92,16.386,16.37,21.3]
[1673479737217,18.92,16.386,16.371,45.83]
[1673479737394,45.79,16.385,16.37,21.3]
[1673479737607,18.92,16.384,16.37,21.3]
[1673479738263,65.79,16.383,16.364,45.85]
[1673479738454,65.79,16.383,16.362,45.85]
[1673479738659,20.0,16.381,16.361,45.86]
[1673479738882,179.8561,16.38,16.361,45.86]
[1673479739735,20.0,16.379,16.361,45.86]
[1673479739937,64.73,16.378,16.361,45.86]
[1673479740134,64.73,16.378,16.36,21.03]
[1673479740343,20.0,16.377,16.36,21.03]
[1673479740548,45.81,16.376,16.36,21.03]
[1673479740765,38.92,16.375,16.36,21.03]
[1673479741206,45.82,16.374,16.354,45.88]
[1673479741418,18.92,16.373,16.354,45.88]
[1673479741633,20.0,16.371,16.354,45.88]
[1673479741968,64.75,16.37,16.354,45.88]
[1673479742171,64.75,16.37,16.348,39.56379036]
[1673479742697,64.75,16.37,16.35,21.05]
[1673479742698,20.0,16.369,16.35,21.05]
[1673479742903,45.82,16.374,16.36,21.05]
[1673479743098,108.4894,16.376,16.361,45.86]
[1673479743733,20.0,16.375,16.361,45.86]
[1673479744064,65.82,16.375,16.353,45.88]
[1673479744256,65.82,16.375,16.352,45.88]
[1673479744257,26.63298,16.374,16.352,45.88]
[1673479744470,62.82,16.373,16.35,21.3]
[1673479744675,20.96,16.372,16.35,67.19]
[1673479744889,177.59718,16.371,16.349,39.56379036]
[1673479745104,6.63298,16.37,16.342,45.91]
[1673479745316,6.63298,16.37,16.343,39.56379036]
[1673479745317,69.46298,16.369,16.343,39.56379036]
[1673479745634,26.63298,16.368,16.343,39.56379036]
[1673479745956,187.11478,16.367,16.341,45.91]
[1673479746164,27.59298,16.366,16.341,45.91]
[1673479746378,68.51298,16.365,16.341,39.56379036]
[1673479746576,20.0,16.363,16.341,39.56379036]
[1673479746899,172.9042,16.362,16.341,39.56379036]
[1673479747720,25.67298,16.361,16.341,39.56379036]
[1673479747941,25.67298,16.361,16.342,45.91]
[1673479747942,47.78,16.36,16.342,45.91]
[1673479748352,64.78,16.36,16.341,45.91]
[1673479748797,153.9842,16.362,16.342,69.30450781]
[1673479749129,153.9842,16.362,16.33,21.31]
[1673479749130,45.86,16.361,16.33,21.31]
[1673479749344,5.67298,16.36,16.33,21.31]
[1673479749658,20.0,16.358,16.33,21.31]
[1673479749847,180.68028,16.357,16.331,45.94]
[1673479750057,5.67298,16.356,16.33,21.31]
[1673479750266,66.83,16.355,16.33,21.31]
[1673479750500,20.0,16.353,16.33,21.31]
[1673479750710,84.8,16.352,16.33,21.31]
[1673479750924,20.0,16.351,16.33,21.31]
[1673479751227,64.81,16.35,16.33,21.31]
[1673479751547,20.0,16.349,16.33,21.31]
[1673479751745,64.81,16.348,16.33,21.31]
[1673479752478,20.0,16.347,16.33,21.31]
[1673479752691,64.82,16.346,16.33,21.31]
[1673479752898,64.82,16.346,16.325,45.96]
[1673479753118,5.67298,16.345,16.325,45.96]
[1673479753442,20.0,16.343,16.321,45.97]
[1673479753641,64.82,16.344,16.321,45.97]
[1673479753642,62.91,16.342,16.321,45.97]
[1673479753843,20.0,16.349,16.33,21.05]
[1673479754044,65.88,16.351,16.331,20.0]
[1673479754259,20.0,16.351,16.332,45.94]
[1673479754467,45.88,16.351,16.332,45.94]
[1673479754680,116.9364,16.353,16.332,45.94]
[1673479754681,116.9364,16.353,16.333,20.0]
[1673479754901,116.9364,16.353,16.34,21.21]
[1673479755109,116.9364,16.353,16.341,65.91]
[1673479755981,116.9364,16.353,16.341,20.0]
[1673479756369,18.92,16.352,16.341,20.0]
[1673479756566,20.0,16.351,16.331,45.94]
[1673479756781,20.0,16.349,16.331,45.94]
[1673479756998,46.85,16.348,16.33,21.06]
[1673479757199,0.96,16.347,16.321,20.0]
[1673479757417,20.0,16.345,16.321,45.97]
[1673479757629,65.9,16.344,16.321,45.97]
[1673479757951,17.96,16.343,16.32,21.04]
[1673479758173,51.58298,16.342,16.32,21.04]
[1673479758359,24.59298,16.341,16.315,45.99]
[1673479758566,71.58298,16.34,16.313,45.99]
[1673479758779,17.96,16.339,16.312,45.99]
[1673479758992,71.59298,16.338,16.311,46.0]
[1673479759202,7.59298,16.337,16.311,46.0]
[1673479759416,20.0,16.335,16.31,21.39]
[1673479759625,89.56298,16.334,16.31,21.39]
[1673479759840,5.67298,16.333,16.311,46.0]
[1673479760042,64.86,16.332,16.31,21.39]
[1673479760248,64.86,16.332,16.311,66.0]
[1673479760583,117.2546,16.335,16.32,21.21]
[1673479760906,117.2546,16.335,16.321,45.97]
[1673479762151,117.2546,16.335,16.317,35.71534123]
[1673479762362,117.2546,16.335,16.318,20.0]
[1673479762788,117.2546,16.335,16.319,45.97]
[1673479762789,45.93,16.334,16.319,45.97]
[1673479762997,45.93,16.334,16.32,20.0]
[1673479763207,25.67298,16.333,16.312,45.99]
[1673479763408,20.0,16.331,16.311,46.0]
[1673479763620,63.9,16.33,16.311,46.0]
[1673479763833,0.96,16.329,16.311,46.0]
[1673479764047,46.91,16.328,16.31,21.04]
[1673479764253,17.96,16.327,16.31,21.04]
[1673479764466,0.96,16.326,16.31,21.04]
[1673479764679,0.96,16.325,16.31,21.04]
[1673479764883,0.96,16.324,16.31,21.04]
[1673479765093,0.96,16.323,16.31,21.04]
[1673479765305,0.96,16.322,16.31,21.04]
[1673479765623,0.96,16.321,16.31,21.04]
[1673479766160,112.4358,16.326,16.31,21.04]
[1673479766161,45.96,16.325,16.311,20.0]
[1673479766469,65.93,16.334,16.312,65.99]
[1673479766670,20.0,16.334,16.312,65.99]
[1673479766879,45.94,16.332,16.312,45.99]
[1673479767085,45.94,16.332,16.311,20.0]
[1673479767297,20.0,16.331,16.311,20.0]
[1673479767506,45.94,16.33,16.311,20.0]
[1673479767836,17.0,16.329,16.311,20.0]
[1673479768030,45.95,16.328,16.311,20.0]
[1673479768238,17.0,16.327,16.311,20.0]
[1673479768577,65.95,16.326,16.311,20.0]
[1673479768781,17.0,16.325,16.311,20.0]
[1673479768974,45.94,16.33,16.312,88.8652938]
[1673479769182,45.93,16.333,16.32,21.21]
[1673479769505,45.91,16.34,16.321,42.8752938]
[1673479769723,45.91,16.34,16.321,88.8452938]
[1673479770131,45.91,16.34,16.322,20.0]
[1673479770358,20.0,16.334,16.322,20.0]
[1673479770867,20.0,16.334,16.32,21.21]
[1673479770868,18.92,16.333,16.32,21.21]
[1673479771082,64.85,16.333,16.312,45.99]
[1673479771303,20.0,16.332,16.311,46.0]
[1673479771518,20.0,16.332,16.31,21.02]
[1673479771519,64.86,16.331,16.31,21.02]
[1673479772238,64.86,16.331,16.311,20.0]
[1673479772439,64.86,16.331,16.311,107.34867456]
[1673479772660,45.94,16.332,16.32,21.21]
[1673479772863,45.93,16.334,16.321,20.0]
[1673479773297,117.2546,16.335,16.321,20.0]
[1673479773699,117.2546,16.335,16.321,62.8752938]
[1673479773912,117.2546,16.335,16.321,108.8452938]
[1673479774775,117.2546,16.335,16.321,65.97]
[1673479774991,117.2546,16.335,16.321,20.0]
[1673479775181,20.0,16.334,16.321,20.0]
[1673479775703,45.93,16.333,16.321,20.0]
[1673479776045,17.0,16.332,16.321,20.0]
[1673479776253,47.86,16.331,16.318,20.0]
[1673479776453,17.0,16.33,16.318,20.0]
[1673479776664,17.0,16.33,16.318,62.8752938]
[1673479777078,17.0,16.331,16.318,42.8752938]
[1673479777297,20.0,16.329,16.314,45.99]
[1673479777602,20.0,16.329,16.312,41.34867456]
[1673479777603,17.0,16.328,16.313,88.8652938]
[1673479777817,1.92,16.327,16.313,42.8752938]
[1673479778029,67.87,16.327,16.313,42.8752938]
[1673479778247,17.0,16.326,16.313,42.8752938]
[1673479778443,1.92,16.325,16.313,42.8752938]
[1673479780120,21.92,16.325,16.313,42.8752938]
[1673479780336,17.0,16.324,16.313,42.8752938]
[1673479780652,1.92,16.323,16.313,42.8752938]
[1673479780973,45.93,16.333,16.314,45.99]
[1673479781173,45.93,16.333,16.315,20.0]
[1673479781383,20.0,16.332,16.315,104.22396836]
[1673479781587,45.93,16.333,16.32,21.21]
[1673479781816,45.92,16.337,16.321,65.97]
[1673479782034,45.91,16.34,16.321,108.8452938]
[1673479782257,45.91,16.34,16.322,62.8752938]
[1673479782448,45.91,16.34,16.323,45.96]
[1673479782666,45.91,16.34,16.323,42.8752938]
[1673479782870,51.58298,16.34,16.31,106.23]
[1673479783075,25.67298,16.339,16.311,20.0]
[1673479783280,71.59298,16.338,16.311,42.8752938]
[1673479783485,25.67298,16.337,16.31,21.39]
[1673479783697,183.7,16.335,16.308,42.8752938]
[1673479784023,183.7,16.333,16.305,46.01]
[1673479784232,0.96,16.334,16.305,51.65427]
[1673479784447,93.31011789,16.342,16.306,24.78889728]
[1673479784657,45.91,16.342,16.32,105.89]
[1673479784863,45.91,16.343,16.321,45.97]
[1673479785072,45.91,16.343,16.33,21.21]
[1673479785274,45.91,16.343,16.331,20.0]
[1673479785610,45.91,16.343,16.331,39.14496728]
[1673479785801,20.0,16.342,16.331,39.14496728]
[1673479786239,65.91,16.343,16.331,39.14496728]
[1673479786465,65.91,16.343,16.332,19.14496728]
[1673479786986,45.91,16.343,16.332,19.14496728]
[1673479787196,117.2546,16.344,16.332,19.14496728]
[1673479787419,45.9,16.347,16.332,19.14496728]
[1673479787608,65.88,16.351,16.333,78.4915186]
[1673479787933,20.0,16.35,16.333,78.4915186]
[1673479788250,20.0,16.35,16.334,19.14496728]
[1673479788462,65.89,16.35,16.334,19.14496728]
[1673479788985,119.597,16.353,16.34,21.21]
[1673479789194,119.597,16.353,16.341,20.0]
[1673479789408,119.597,16.353,16.341,85.05496728]
[1673479789598,119.597,16.353,16.342,19.14496728]
[1673479790458,45.87,16.357,16.342,19.14496728]
[1673479790672,157.9416,16.36,16.342,65.05496728]
[1673479790868,45.86,16.361,16.343,20.0]
[1673479791076,20.0,16.36,16.344,45.9]
[1673479791410,20.0,16.36,16.344,97.60648588]
[1673479791611,20.0,16.36,16.345,19.14496728]
[1673479791815,45.86,16.359,16.345,19.14496728]
[1673479792226,20.0,16.36,16.35,21.05]
[1673479792439,45.84,16.368,16.351,20.0]
[1673479792650,45.84,16.368,16.352,45.88]
[1673479792864,20.0,16.377,16.352,45.88]
[1673479792865,45.83,16.37,16.352,65.02496728]
[1673479793070,20.0,16.369,16.353,19.14496728]
[1673479793301,45.84,16.368,16.353,19.14496728]
[1673479793821,20.0,16.369,16.351,65.88]
[1673479794032,20.0,16.369,16.352,19.14496728]
[1673479794233,45.83,16.37,16.353,45.88]
[1673479794450,45.82,16.374,16.353,62.88]
[1673479794660,20.0,16.37,16.354,19.14496728]
[1673479795079,20.0,16.369,16.354,19.14496728]
[1673479795397,65.83,16.369,16.354,19.14496728]
[1673479795714,65.83,16.369,16.346,45.9]
[1673479795901,45.83,16.369,16.35,19.14496728]
[1673479796111,1.92,16.368,16.35,40.29496728]
[1673479796339,1.92,16.368,16.351,45.88]
[1673479796755,1.92,16.368,16.352,19.14496728]
[1673479796960,1.92,16.368,16.353,45.88]
[1673479797504,1.92,16.368,16.35,105.96]
[1673479797811,1.92,16.368,16.351,39.14496728]
[1673479798030,20.0,16.366,16.351,39.14496728]
[1673479798214,1.92,16.365,16.352,19.14496728]
[1673479798430,45.85,16.364,16.352,19.14496728]
[1673479798644,1.92,16.363,16.352,19.14496728]
[1673479798880,18.92,16.363,16.352,19.14496728]
[1673479799178,20.0,16.362,16.351,20.0]
[1673479799400,18.92,16.361,16.349,19.14496728]
[1673479799591,18.92,16.361,16.35,20.0]
[1673479800013,18.92,16.361,16.351,19.14496728]
[1673479800233,18.92,16.361,16.352,20.0]
[1673479800429,17.0,16.361,16.352,20.0]
[1673479800642,20.0,16.369,16.353,19.14496728]
[1673479800866,45.84,16.368,16.353,19.14496728]
[1673479801274,20.0,16.37,16.353,65.02496728]
[1673479801493,20.0,16.37,16.353,97.58648588]
[1673479801708,45.82,16.374,16.36,21.21]
[1673479801916,164.989,16.376,16.361,65.86]
[1673479802131,45.81,16.378,16.361,85.00496728]
[1673479802318,116.152,16.38,16.362,37.10496728]
[1673479802655,116.152,16.38,16.363,64.99496728]
[1673479802867,45.79,16.386,16.37,21.04]
[1673479803056,65.78,16.388,16.371,20.0]
[1673479803269,133.9493,16.397,16.372,45.83]
[1673479803270,45.76,16.396,16.372,45.83]
[1673479803487,45.76,16.396,16.38,21.21]
[1673479803701,65.76,16.397,16.381,65.8]
[1673479803910,20.0,16.397,16.382,18.8134054]
[1673479804119,20.0,16.405,16.383,65.79]
[1673479804439,45.74,16.404,16.39,21.05]
[1673479804641,111.0251,16.407,16.391,66.70098677]
[1673479804847,111.0251,16.407,16.391,85.84595405]
[1673479805062,111.0251,16.407,16.392,19.14496728]
[1673479805261,111.0251,16.407,16.393,20.0]
[1673479805472,111.0251,16.407,16.394,0.75844703]
[1673479805693,111.0251,16.407,16.394,19.90341431]
[1673479805902,20.0,16.406,16.394,19.90341431]
[1673479806113,111.0251,16.407,16.394,19.14496728]
[1673479806329,111.0251,16.407,16.396,0.68380741]
[1673479807153,115.6838,16.415,16.396,0.68380741]
[1673479807154,122.28311753,16.447,16.401,1.03129263]
[1673479807364,118.2052,16.434,16.403,1.2634184]
[1673479807574,5.67298,16.433,16.405,1.2634184]
[1673479807784,45.66,16.432,16.407,1.2634184]
[1673479808017,25.67298,16.431,16.407,1.2634184]
[1673479808229,72.32298,16.43,16.405,1.2634184]
[1673479808418,5.67298,16.429,16.404,19.14496728]
[1673479808627,45.67,16.428,16.41,21.11]
[1673479808853,45.67,16.428,16.411,65.72]
[1673479809064,45.67,16.428,16.412,0.76538001]
[1673479809379,45.67,16.428,16.412,19.91034729]
[1673479809589,45.66,16.43,16.413,39.14496728]
[1673479809800,20.0,16.431,16.414,0.78626943]
[1673479810014,20.0,16.431,16.414,19.93123671]
[1673479810199,65.66,16.43,16.406,35.47758959]
[1673479810414,5.67298,16.429,16.4,105.41]
[1673479810619,55.67,16.428,16.401,0.9505656]
[1673479810831,24.59298,16.427,16.401,75.57312247]
[1673479811071,45.67,16.426,16.41,20.92]
[1673479811374,118.2052,16.434,16.411,39.14496728]
[1673479811375,45.66,16.43,16.411,39.14496728]
[1673479811584,45.66,16.433,16.412,0.9505656]
[1673479811788,20.0,16.432,16.412,38.28993456]
[1673479812001,45.66,16.431,16.413,19.14496728]
[1673479812215,5.67298,16.43,16.413,19.14496728]
[1673479812526,45.67,16.429,16.409,19.14496728]
[1673479812738,45.67,16.429,16.401,45.74]
[1673479812739,24.59298,16.428,16.401,45.74]
[1673479812949,71.34298,16.427,16.402,19.14496728]
[1673479813266,6.63298,16.426,16.402,19.14496728]
[1673479813477,62.68,16.425,16.403,0.74504025]
[1673479813797,62.68,16.425,16.4,105.33]
[1673479813798,45.68,16.425,16.41,21.11]
[1673479813985,20.0,16.433,16.411,45.72]
[1673479813986,45.66,16.431,16.411,45.72]
[1673479814195,45.66,16.432,16.411,64.86496728]
[1673479814518,45.65,16.436,16.42,21.11]
[1673479814841,45.64,16.437,16.421,36.14496728]
[1673479815054,45.63,16.441,16.43,21.09]
[1673479815266,45.63,16.442,16.43,21.09]
[1673479815580,301.5609735,16.475,16.431,64.80496728]
[1673479815773,20.99,16.46,16.431,65.66]
[1673479815982,5.67298,16.459,16.431,20.0]
[1673479816194,45.59,16.458,16.432,19.14496728]
[1673479816406,5.67298,16.457,16.432,19.14496728]
[1673479816616,45.59,16.456,16.44,20.97]
[1673479816844,45.59,16.456,16.441,20.0]
[1673479817155,45.56,16.467,16.442,19.14496728]
[1673479817368,5.17298,16.466,16.442,19.14496728]
[1673479817560,45.57,16.465,16.442,19.14496728]
[1673479817779,20.0,16.464,16.442,19.14496728]
[1673479817982,51.24298,16.463,16.442,19.14496728]
[1673479818201,5.67298,16.462,16.442,19.14496728]
[1673479818423,45.58,16.461,16.441,65.63]
[1673479818632,5.67298,16.46,16.44,21.29]
[1673479818839,85.58,16.459,16.439,19.14496728]
[1673479819053,85.58,16.459,16.43,105.35]
[1673479819054,5.67298,16.458,16.432,45.66]
[1673479819371,5.67298,16.458,16.43,40.05496728]
[1673479819372,20.0,16.456,16.43,40.05496728]
[1673479819574,45.59,16.455,16.433,19.14496728]
[1673479819765,20.0,16.454,16.434,45.65]
[1673479819976,71.27298,16.453,16.431,19.14496728]
[1673479820182,5.67298,16.452,16.432,19.14496728]
[1673479820416,45.61,16.451,16.432,19.14496728]
[1673479820625,18.92,16.45,16.432,19.14496728]
[1673479820815,38.92,16.45,16.432,19.14496728]
[1673479821022,18.92,16.45,16.432,19.14496728]
[1673479821256,0.96,16.45,16.432,19.14496728]
[1673479821454,114.8639,16.452,16.44,21.09]
[1673479821664,114.8639,16.452,16.441,65.63]
[1673479821871,114.8639,16.452,16.441,20.0]
[1673479822201,45.59,16.457,16.44,105.91]
[1673479822417,5.67298,16.456,16.431,45.66]
[1673479822632,5.67298,16.456,16.43,105.35]
[1673479822633,45.59,16.455,16.43,20.91]
[1673479822818,25.67298,16.454,16.433,19.14496728]
[1673479823036,64.52,16.453,16.433,19.14496728]
[1673479823368,20.0,16.452,16.433,19.14496728]
[1673479823576,1.92,16.451,16.433,19.14496728]
[1673479823762,47.53,16.451,16.434,45.65]
[1673479823985,47.53,16.451,16.432,19.14496728]
[1673479824186,0.96,16.451,16.44,20.92]
[1673479824401,118.0348,16.452,16.44,20.92]
[1673479824617,20.0,16.46,16.441,84.77496728]
[1673479824618,45.59,16.457,16.441,84.77496728]
[1673479824824,164.8067,16.467,16.441,84.77496728]
[1673479825042,45.57,16.463,16.442,19.14496728]
[1673479825351,5.67298,16.462,16.442,19.14496728]
[1673479825558,45.56,16.466,16.45,21.09]
[1673479825758,20.0,16.465,16.45,105.91]
[1673479825967,45.57,16.464,16.443,45.63]
[1673479826190,20.0,16.463,16.443,42.63]
[1673479826389,45.57,16.462,16.444,19.14496728]
[1673479826600,45.56,16.467,16.45,21.11]
[1673479826824,45.56,16.467,16.451,20.0]
[1673479827451,45.56,16.467,16.452,19.14496728]
[1673479828169,45.56,16.468,16.452,19.14496728]
[1673479828378,116.297,16.47,16.453,45.6]
[1673479828588,20.0,16.469,16.453,45.6]
[1673479828821,20.0,16.469,16.454,19.14496728]
[1673479829359,20.0,16.469,16.455,45.59]
[1673479829854,20.0,16.469,16.452,45.6]
[1673479830063,45.56,16.468,16.45,40.30496728]
[1673479830391,45.56,16.468,16.45,21.16]
[1673479830605,45.56,16.468,16.44,84.45]
[1673479830606,20.0,16.467,16.447,19.14496728]
[1673479830814,53.15298,16.466,16.447,19.14496728]
[1673479831014,20.0,16.465,16.441,45.63]
[1673479831227,64.49,16.464,16.441,45.63]
[1673479831439,20.0,16.463,16.442,19.14496728]
[1673479831649,20.0,16.461,16.442,19.14496728]
[1673479831850,62.58,16.46,16.442,19.14496728]
[1673479832060,1.92,16.459,16.442,19.14496728]
[1673479832267,1.92,16.459,16.44,20.98]
[1673479832268,45.59,16.458,16.44,20.98]
[1673479832597,20.0,16.456,16.436,54.62255687]
[1673479832804,47.51,16.455,16.436,19.14496728]
[1673479833120,20.0,16.454,16.436,19.14496728]
[1673479833335,70.19298,16.453,16.431,45.66]
[1673479833544,70.19298,16.453,16.43,105.35]
[1673479833545,5.67298,16.452,16.432,19.14496728]
[1673479833745,5.67298,16.452,16.43,20.91]
[1673479833746,65.61,16.451,16.43,20.91]
[1673479834076,43.63298,16.45,16.43,19.14496728]
[1673479834289,52.24298,16.449,16.421,45.69]
[1673479834603,52.24298,16.449,16.422,19.14496728]
[1673479834604,20.0,16.447,16.422,19.14496728]
[1673479834792,53.21298,16.446,16.422,19.14496728]
[1673479834997,20.0,16.444,16.422,19.14496728]
[1673479835225,20.0,16.444,16.415,44.7900838]
[1673479835226,183.7,16.442,16.415,44.7900838]
[1673479835525,72.26298,16.443,16.41,105.55]
[1673479835526,20.0,16.439,16.41,105.55]
[1673479835731,45.64,16.438,16.411,45.72]
[1673479835963,43.63298,16.437,16.411,45.72]
[1673479836168,51.32298,16.436,16.411,45.72]
[1673479836492,44.59298,16.435,16.411,45.72]
[1673479836803,71.32298,16.434,16.411,45.72]
[1673479837120,38.92,16.433,16.41,150.3400838]
[1673479837330,45.66,16.432,16.41,150.3400838]
[1673479837540,20.0,16.43,16.41,105.55]
[1673479837748,45.67,16.429,16.41,20.98]
[1673479837960,20.96,16.428,16.41,20.98]
[1673479838151,45.67,16.427,16.405,44.7900838]
[1673479838371,17.96,16.426,16.411,20.0]
[1673479838697,17.96,16.426,16.412,45.71]
[1673479838698,0.96,16.425,16.412,45.71]
[1673479838911,0.96,16.424,16.411,45.72]
[1673479839416,0.96,16.423,16.411,45.72]
[1673479839628,20.0,16.432,16.411,45.72]
[1673479839838,45.66,16.431,16.411,45.72]
[1673479840385,20.0,16.432,16.411,45.72]
[1673479840566,51.33298,16.431,16.41,20.98]
[1673479840780,5.67298,16.43,16.41,20.98]
[1673479840985,65.67,16.429,16.41,20.98]
[1673479841202,18.92,16.428,16.41,20.98]
[1673479841616,20.0,16.43,16.41,20.98]
[1673479841828,45.67,16.429,16.41,20.98]
[1673479842476,20.0,16.428,16.41,20.98]
[1673479842690,51.34298,16.427,16.41,20.98]
[1673479842888,51.34298,16.427,16.4,84.19]
[1673479842889,51.34298,16.427,16.401,45.74]
[1673479843094,20.0,16.425,16.401,45.74]
[1673479843310,64.6,16.424,16.401,45.74]
[1673479843523,64.6,16.424,16.402,20.0]
[1673479843730,20.0,16.423,16.403,45.74]
[1673479843940,18.92,16.422,16.403,45.74]
[1673479844157,64.61,16.422,16.402,45.74]
[1673479844582,18.92,16.422,16.403,20.0]
[1673479844786,45.68,16.424,16.404,45.74]
[1673479845003,45.67,16.429,16.41,105.78]
[1673479845208,45.66,16.431,16.411,45.72]
[1673479845530,118.9719,16.434,16.42,20.97]
[1673479845958,118.9719,16.434,16.421,45.69]
[1673479846688,45.63,16.442,16.421,45.69]
[1673479846898,20.0,16.444,16.43,21.04]
[1673479847088,160.5029,16.443,16.43,20.54]
[1673479847301,160.5029,16.443,16.423,45.68]
[1673479847508,25.67298,16.442,16.421,45.69]
[1673479847949,45.63,16.441,16.421,45.69]
[1673479848360,20.0,16.44,16.421,45.69]
[1673479848570,17.0,16.44,16.421,45.69]
[1673479849102,65.64,16.439,16.42,20.97]
[1673479849302,24.59298,16.438,16.42,20.97]
[1673479849510,65.64,16.437,16.417,45.7]
[1673479849713,17.96,16.436,16.411,45.72]
[1673479849926,66.61,16.435,16.411,90.5100838]
[1673479850148,23.63298,16.434,16.411,90.5100838]
[1673479850351,20.0,16.432,16.411,90.5100838]
[1673479850570,63.62,16.431,16.411,90.5100838]
[1673479850778,20.96,16.43,16.411,121.91434006]
[1673479850992,17.96,16.429,16.411,121.91434006]
[1673479851194,46.63,16.428,16.411,90.5100838]
[1673479851401,17.96,16.427,16.411,44.7900838]
[1673479851613,0.96,16.426,16.411,44.7900838]
[1673479852023,0.96,16.426,16.411,90.5100838]
[1673479852450,17.96,16.427,16.411,90.5100838]
[1673479852662,20.0,16.436,16.42,105.45]
[1673479852981,228.5416,16.443,16.421,64.83496728]
[1673479853394,274.1716,16.443,16.422,39.14496728]
[1673479853715,274.1716,16.443,16.423,64.82496728]
[1673479853919,228.5416,16.443,16.423,64.82496728]
[1673479854241,114.8729,16.443,16.43,20.92]
[1673479854454,114.8729,16.443,16.431,45.66]
[1673479854667,114.8729,16.443,16.431,64.80496728]
[1673479854991,114.8729,16.443,16.431,45.66]
[1673479856232,114.8729,16.443,16.43,20.9]
[1673479856455,20.0,16.448,16.427,45.67]
[1673479856673,183.7,16.446,16.424,45.68]
[1673479856983,71.29298,16.445,16.423,19.14496728]
[1673479857386,71.29298,16.445,16.421,45.69]
[1673479857597,37.0,16.444,16.42,124.48496728]
[1673479857819,163.6348,16.443,16.421,45.69]
[1673479858029,17.0,16.442,16.421,45.69]
[1673479858226,255.96298,16.441,16.416,44.7900838]
[1673479858441,183.7,16.439,16.411,45.72]
[1673479858664,183.7,16.437,16.412,19.14496728]
[1673479858980,273.94298,16.436,16.41,105.73]
[1673479859176,20.0,16.434,16.41,124.87496728]
[1673479859387,64.58,16.433,16.41,124.87496728]
[1673479859707,64.58,16.433,16.41,105.73]
[1673479859917,248.28,16.433,16.41,124.87496728]